[Event "Early-Titled-Tuesday-Blitz-October-10-2023"]
[Site "Chess.com"]
[Date "2023.10.10"]
[Round "7"]
[White "Wizard_97"]
[Black "Eagle_2019"]
[Result "0-1"]
[WhiteElo "2573"]
[BlackElo "2731"]
[TimeControl "180+1"]
[EndTime "9:16:44 PDT"]
[Termination "Eagle_2019 won by checkmate"]

1. e4 {[%clk 0:03:00.9]} 1... c5 {[%clk 0:02:59.2]} 2. Nf3 {[%clk 0:03:00.8]}
2... Nc6 {[%clk 0:02:59.2]} 3. d4 {[%clk 0:03:01.2]} 3... cxd4 {[%clk
0:02:59.8]} 4. Nxd4 {[%clk 0:03:01.7]} 4... Nf6 {[%clk 0:03:00.3]} 5. Nc3 {[%clk
0:03:01.7]} 5... e6 {[%clk 0:02:59.5]} 6. Nxc6 {[%clk 0:03:01.3]} 6... bxc6
{[%clk 0:02:59.3]} 7. e5 {[%clk 0:03:02.2]} 7... Nd5 {[%clk 0:02:10.5]} 8. Ne4
{[%clk 0:03:02.1]} 8... Bb7 {[%clk 0:02:09.1]} 9. Be2 {[%clk 0:02:58.8]} 9... c5
{[%clk 0:02:07.9]} 10. O-O {[%clk 0:02:59.4]} 10... Qc7 {[%clk 0:02:07.7]} 11.
c4 {[%clk 0:02:57.9]} 11... Ne3 {[%clk 0:02:05.4]} 12. Nd6+ {[%clk 0:02:27]}
12... Bxd6 {[%clk 0:02:00.6]} 13. exd6 {[%clk 0:02:27.4]} 13... Qc6 {[%clk
0:01:59.9]} 14. Bf3 {[%clk 0:02:28]} 14... Nxd1 {[%clk 0:01:52.3]} 15. Bxc6
{[%clk 0:02:25.7]} 15... Bxc6 {[%clk 0:01:52.3]} 16. Rxd1 {[%clk 0:02:25.4]}
16... h5 {[%clk 0:01:44.6]} 17. Be3 {[%clk 0:02:24.4]} 17... h4 {[%clk
0:01:44.3]} 18. Bxc5 {[%clk 0:02:22.1]} 18... h3 {[%clk 0:01:44.3]} 19. g3
{[%clk 0:02:20.9]} 19... a5 {[%clk 0:01:41.5]} 20. a3 {[%clk 0:02:19.3]} 20...
a4 {[%clk 0:01:37.8]} 21. Rd4 {[%clk 0:02:19.8]} 21... Rb8 {[%clk 0:01:35.8]}
22. Bb4 {[%clk 0:02:19.7]} 22... Rh5 {[%clk 0:01:29.4]} 23. Re1 {[%clk
0:02:19.4]} 23... f6 {[%clk 0:01:24.9]} 24. Re3 {[%clk 0:02:12.5]} 24... Kf7
{[%clk 0:01:23.8]} 25. f4 {[%clk 0:02:12.9]} 25... f5 {[%clk 0:01:20.6]} 26. Rd2
{[%clk 0:02:10.1]} 26... Rg8 {[%clk 0:01:18.6]} 27. Rf2 {[%clk 0:02:05]} 27...
g5 {[%clk 0:01:16.9]} 28. Re5 {[%clk 0:01:56.1]} 28... gxf4 {[%clk 0:01:08.5]}
29. Rxf4 {[%clk 0:01:56.3]} 29... Rxg3+ {[%clk 0:01:08.4]} 30. Kf1 {[%clk
0:01:56.9]} 30... Rg2 {[%clk 0:01:06.1]} 31. Rf2 {[%clk 0:01:57.1]} 31... Rh4
{[%clk 0:01:02.7]} 32. Re3 {[%clk 0:01:48.5]} 32... Rxc4 {[%clk 0:00:36.4]} 33.
Rxh3 {[%clk 0:01:44.9]} 33... Rc1+ {[%clk 0:00:35.3]} 34. Be1 {[%clk 0:01:43.6]}
34... Rxf2+ {[%clk 0:00:34.9]} 35. Kxf2 {[%clk 0:01:42.7]} 35... Rc2+ {[%clk
0:00:35.1]} 36. Ke3 {[%clk 0:01:29]} 36... Rxb2 {[%clk 0:00:35.1]} 37. Kf4
{[%clk 0:01:27.8]} 37... Re2 {[%clk 0:00:30.8]} 38. Re3 {[%clk 0:01:17.5]} 38...
Rxh2 {[%clk 0:00:29.4]} 39. Bc3 {[%clk 0:01:15.9]} 39... Rh4+ {[%clk 0:00:28.6]}
40. Ke5 {[%clk 0:00:59.1]} 40... f4 {[%clk 0:00:23.6]} 41. Re1 {[%clk
0:00:54.6]} 41... f3 {[%clk 0:00:23.4]} 42. Bd4 {[%clk 0:00:54.8]} 42... Rh5+
{[%clk 0:00:15.7]} 43. Kf4 {[%clk 0:00:54.3]} 43... Rf5+ {[%clk 0:00:15.7]} 44.
Kg3 {[%clk 0:00:54.4]} 44... Rg5+ {[%clk 0:00:15.2]} 45. Kh4 {[%clk 0:00:42.8]}
45... Rd5 {[%clk 0:00:14.6]} 46. Bc3 {[%clk 0:00:24.5]} 46... Rxd6 {[%clk
0:00:14.1]} 47. Kg3 {[%clk 0:00:24.6]} 47... Rd3 {[%clk 0:00:14.1]} 48. Bb4
{[%clk 0:00:24.7]} 48... Kf6 {[%clk 0:00:13.8]} 49. Kf2 {[%clk 0:00:23]} 49...
Kf5 {[%clk 0:00:13.9]} 50. Rc1 {[%clk 0:00:22.6]} 50... e5 {[%clk 0:00:13.8]}
51. Rc5 {[%clk 0:00:21.6]} 51... Rb3 {[%clk 0:00:13]} 52. Bc3 {[%clk 0:00:20]}
52... Rxa3 {[%clk 0:00:12.7]} 53. Rxe5+ {[%clk 0:00:19.5]} 53... Kg4 {[%clk
0:00:12.9]} 54. Bd2 {[%clk 0:00:17.8]} 54... Ra2 {[%clk 0:00:12.8]} 55. Ke1
{[%clk 0:00:03.5]} 55... f2+ {[%clk 0:00:12.1]} 56. Kxf2 {[%clk 0:00:04.2]}
56... Rxd2+ {[%clk 0:00:12.1]} 57. Ke3 {[%clk 0:00:04.9]} 57... Rd5 {[%clk
0:00:11.9]} 58. Re8 {[%clk 0:00:04.7]} 58... Kf5 {[%clk 0:00:11.1]} 59. Rb8
{[%clk 0:00:05.1]} 59... Rb5 {[%clk 0:00:10.6]} 60. Rf8+ {[%clk 0:00:04.4]}
60... Ke5 {[%clk 0:00:10.8]} 61. Kd3 {[%clk 0:00:04.8]} 61... Rb3+ {[%clk
0:00:10.8]} 62. Kc4 {[%clk 0:00:05.1]} 62... Bd5+ {[%clk 0:00:11.1]} 63. Kc5
{[%clk 0:00:05.7]} 63... d6# {[%clk 0:00:11.6]} 0-1

[Event "Early-Titled-Tuesday-Blitz-October-10-2023"]
[Site "Chess.com"]
[Date "2023.10.10"]
[Round "7"]
[White "Itk04"]
[Black "FontVella8"]
[Result "1/2-1/2"]
[WhiteElo "2749"]
[BlackElo "2627"]
[TimeControl "180+1"]
[EndTime "9:16:52 PDT"]
[Termination "Game drawn - insufficient material"]

1. b3 {[%clk 0:02:54.9]} 1... d5 {[%clk 0:02:58.8]} 2. Bb2 {[%clk 0:02:54.6]}
2... Nf6 {[%clk 0:02:59]} 3. g3 {[%clk 0:02:52.3]} 3... g6 {[%clk 0:02:59.1]} 4.
Bg2 {[%clk 0:02:52.3]} 4... Bg7 {[%clk 0:02:59.5]} 5. Nf3 {[%clk 0:02:53]} 5...
O-O {[%clk 0:03:00.1]} 6. O-O {[%clk 0:02:53.6]} 6... c5 {[%clk 0:03:00.7]} 7.
e3 {[%clk 0:02:52.6]} 7... Qc7 {[%clk 0:02:58.9]} 8. c4 {[%clk 0:02:52.6]} 8...
dxc4 {[%clk 0:02:54.2]} 9. bxc4 {[%clk 0:02:53.5]} 9... Nc6 {[%clk 0:02:54.3]}
10. d4 {[%clk 0:02:47.3]} 10... Rd8 {[%clk 0:02:53.8]} 11. Nbd2 {[%clk
0:02:45.1]} 11... Bf5 {[%clk 0:02:51.7]} 12. Qe2 {[%clk 0:02:15.1]} 12... Ne4
{[%clk 0:02:29.2]} 13. Nb3 {[%clk 0:01:50.1]} 13... a5 {[%clk 0:02:21.7]} 14.
Rfd1 {[%clk 0:01:29.5]} 14... a4 {[%clk 0:02:20.2]} 15. Nxc5 {[%clk 0:01:28.8]}
15... a3 {[%clk 0:02:09.3]} 16. Nxe4 {[%clk 0:00:55.8]} 16... axb2 {[%clk
0:02:08.1]} 17. Rab1 {[%clk 0:00:54.3]} 17... Bxe4 {[%clk 0:02:06.7]} 18. Rxb2
{[%clk 0:00:54.7]} 18... e5 {[%clk 0:01:53.9]} 19. Rbd2 {[%clk 0:00:25.2]} 19...
exd4 {[%clk 0:01:47.8]} 20. Nxd4 {[%clk 0:00:17]} 20... Bxg2 {[%clk 0:01:42.9]}
21. Kxg2 {[%clk 0:00:17.9]} 21... Nxd4 {[%clk 0:01:18]} 22. exd4 {[%clk
0:00:18.8]} 22... Ra4 {[%clk 0:01:18.2]} 23. Rc2 {[%clk 0:00:10.7]} 23... Bxd4
{[%clk 0:01:05.1]} 24. Rxd4 {[%clk 0:00:09.4]} 24... Qc6+ {[%clk 0:00:52.2]} 25.
Rd5 {[%clk 0:00:10]} 25... Rxd5 {[%clk 0:00:29.5]} 26. cxd5 {[%clk 0:00:10.9]}
26... Qxd5+ {[%clk 0:00:30.1]} 27. Qf3 {[%clk 0:00:10.9]} 27... Qxf3+ {[%clk
0:00:23]} 28. Kxf3 {[%clk 0:00:11.8]} 28... Ra3+ {[%clk 0:00:23.6]} 29. Ke4
{[%clk 0:00:11.9]} 29... Kg7 {[%clk 0:00:23.9]} 30. Ke5 {[%clk 0:00:11.6]} 30...
h5 {[%clk 0:00:23]} 31. h4 {[%clk 0:00:11.4]} 31... Ra6 {[%clk 0:00:20.9]} 32.
Rb2 {[%clk 0:00:10.8]} 32... Re6+ {[%clk 0:00:15.2]} 33. Kd4 {[%clk 0:00:08]}
33... b6 {[%clk 0:00:15]} 34. a4 {[%clk 0:00:07.4]} 34... Kf6 {[%clk 0:00:15]}
35. Kd5 {[%clk 0:00:06.1]} 35... Kf5 {[%clk 0:00:13.7]} 36. Rb4 {[%clk
0:00:05.1]} 36... Kf6 {[%clk 0:00:06.4]} 37. Rf4+ {[%clk 0:00:04.4]} 37... Ke7
{[%clk 0:00:06.7]} 38. Kc4 {[%clk 0:00:03.6]} 38... Re5 {[%clk 0:00:05.7]} 39.
Kb4 {[%clk 0:00:03.7]} 39... Ke6 {[%clk 0:00:05.6]} 40. Rc4 {[%clk 0:00:03.6]}
40... Kf5 {[%clk 0:00:04.6]} 41. Rc6 {[%clk 0:00:03.8]} 41... Kg4 {[%clk
0:00:04.5]} 42. Rf6 {[%clk 0:00:03.5]} 42... Re4+ {[%clk 0:00:02.4]} 43. Kb5
{[%clk 0:00:04.2]} 43... Rd4 {[%clk 0:00:01.6]} 44. Rf4+ {[%clk 0:00:03.4]}
44... Rxf4 {[%clk 0:00:01.7]} 45. gxf4 {[%clk 0:00:04.3]} 45... Kxf4 {[%clk
0:00:02.1]} 46. Kxb6 {[%clk 0:00:05.2]} 46... g5 {[%clk 0:00:02.9]} 47. a5
{[%clk 0:00:06.1]} 47... g4 {[%clk 0:00:01.4]} 48. a6 {[%clk 0:00:07]} 48... Kf3
{[%clk 0:00:02.3]} 49. a7 {[%clk 0:00:07.2]} 49... Kxf2 {[%clk 0:00:03.2]} 50.
a8=Q {[%clk 0:00:08.1]} 50... g3 {[%clk 0:00:04.1]} 51. Qa2+ {[%clk 0:00:07.7]}
51... Kg1 {[%clk 0:00:03.9]} 52. Qxf7 {[%clk 0:00:07.5]} 52... g2 {[%clk
0:00:04.3]} 53. Qf3 {[%clk 0:00:07.7]} 53... Kh2 {[%clk 0:00:03.8]} 54. Qe2
{[%clk 0:00:08]} 54... Kh1 {[%clk 0:00:03.7]} 55. Qf3 {[%clk 0:00:07.4]} 55...
Kh2 {[%clk 0:00:04]} 56. Qf4+ {[%clk 0:00:05.9]} 56... Kh1 {[%clk 0:00:04.1]}
57. Qe4 {[%clk 0:00:05.9]} 57... Kh2 {[%clk 0:00:04]} 58. Qe5+ {[%clk
0:00:06.4]} 58... Kh1 {[%clk 0:00:04.6]} 59. Qd5 {[%clk 0:00:06.9]} 59... Kh2
{[%clk 0:00:03.8]} 60. Qxh5 {[%clk 0:00:07.4]} 60... g1=Q+ {[%clk 0:00:03.5]}
61. Qc5 {[%clk 0:00:08.3]} 61... Qb1+ {[%clk 0:00:02.8]} 62. Kc7 {[%clk
0:00:08.1]} 62... Qh7+ {[%clk 0:00:02.4]} 63. Kb6 {[%clk 0:00:08.4]} 63... Qxh4
{[%clk 0:00:03]} 64. Qc2+ {[%clk 0:00:07.5]} 64... Kh3 {[%clk 0:00:02.8]} 65.
Qd3+ {[%clk 0:00:06.8]} 65... Qg3 {[%clk 0:00:03.7]} 66. Qh7+ {[%clk 0:00:06.4]}
66... Kg2 {[%clk 0:00:04]} 67. Qb7+ {[%clk 0:00:06.4]} 67... Qf3 {[%clk
0:00:04.2]} 68. Qc6 {[%clk 0:00:06.5]} 68... Kf2 {[%clk 0:00:04.4]} 69. Qxf3+
{[%clk 0:00:05.3]} 69... Kxf3 {[%clk 0:00:04.7]} 1/2-1/2

[Event "Early-Titled-Tuesday-Blitz-October-10-2023"]
[Site "Chess.com"]
[Date "2023.10.10"]
[Round "7"]
[White "MikeSailer"]
[Black "chenrip"]
[Result "0-1"]
[WhiteElo "2144"]
[BlackElo "2491"]
[TimeControl "180+1"]
[EndTime "9:16:58 PDT"]
[Termination "chenrip won on time"]

1. d4 {[%clk 0:03:00.4]} 1... d5 {[%clk 0:02:56]} 2. Bg5 {[%clk 0:02:56.1]} 2...
c6 {[%clk 0:02:55.7]} 3. c3 {[%clk 0:02:43.1]} 3... Qb6 {[%clk 0:02:55.4]} 4.
Qb3 {[%clk 0:02:42.6]} 4... Nd7 {[%clk 0:02:54.7]} 5. Nf3 {[%clk 0:02:39]} 5...
f6 {[%clk 0:02:53.9]} 6. Bf4 {[%clk 0:02:37.6]} 6... g5 {[%clk 0:02:53.6]} 7.
Bg3 {[%clk 0:02:37.7]} 7... h5 {[%clk 0:02:53.8]} 8. h3 {[%clk 0:02:38.1]} 8...
Bg7 {[%clk 0:02:52.2]} 9. e3 {[%clk 0:02:37.5]} 9... Nh6 {[%clk 0:02:43.7]} 10.
Nbd2 {[%clk 0:02:29.2]} 10... Nf5 {[%clk 0:02:40.1]} 11. Qxb6 {[%clk 0:02:15]}
11... axb6 {[%clk 0:02:39]} 12. Bc7 {[%clk 0:02:15.1]} 12... g4 {[%clk
0:02:27.3]} 13. hxg4 {[%clk 0:02:11.6]} 13... hxg4 {[%clk 0:02:26.8]} 14. Rxh8+
{[%clk 0:02:12.1]} 14... Bxh8 {[%clk 0:02:27.2]} 15. Ng1 {[%clk 0:02:06.9]}
15... b5 {[%clk 0:02:24.3]} 16. Bd3 {[%clk 0:01:51.5]} 16... Nf8 {[%clk
0:02:19.9]} 17. a3 {[%clk 0:01:43.5]} 17... e5 {[%clk 0:02:16.7]} 18. dxe5
{[%clk 0:01:40.8]} 18... fxe5 {[%clk 0:02:16.8]} 19. g3 {[%clk 0:01:32.6]} 19...
Kf7 {[%clk 0:01:37.2]} 20. O-O-O {[%clk 0:01:21.3]} 20... Ke6 {[%clk 0:01:29.1]}
21. Ne2 {[%clk 0:01:08.3]} 21... Ng6 {[%clk 0:01:12.3]} 22. Bd8 {[%clk
0:00:59.4]} 22... e4 {[%clk 0:01:03.5]} 23. Bc2 {[%clk 0:00:55.9]} 23... Bd7
{[%clk 0:01:01.1]} 24. Bg5 {[%clk 0:00:54.3]} 24... Be5 {[%clk 0:00:58.6]} 25.
Rh1 {[%clk 0:00:51]} 25... Rh8 {[%clk 0:00:52.9]} 26. Rxh8 {[%clk 0:00:50.5]}
26... Bxh8 {[%clk 0:00:53.5]} 27. Bf4 {[%clk 0:00:42.9]} 27... c5 {[%clk
0:00:48.5]} 28. b3 {[%clk 0:00:33.4]} 28... Nxf4 {[%clk 0:00:43]} 29. gxf4
{[%clk 0:00:31.5]} 29... g3 {[%clk 0:00:38.1]} 30. Nxg3 {[%clk 0:00:28]} 30...
Nxg3 {[%clk 0:00:37.2]} 31. fxg3 {[%clk 0:00:27.9]} 31... Bxc3 {[%clk
0:00:37.7]} 32. g4 {[%clk 0:00:23.7]} 32... Kf7 {[%clk 0:00:27]} 33. Nf1 {[%clk
0:00:20.9]} 33... Bxg4 {[%clk 0:00:24.7]} 34. Ng3 {[%clk 0:00:13.9]} 34... Kg6
{[%clk 0:00:23.1]} 35. a4 {[%clk 0:00:13.2]} 35... bxa4 {[%clk 0:00:22.9]} 36.
bxa4 {[%clk 0:00:12.6]} 36... b6 {[%clk 0:00:19.5]} 37. Bb3 {[%clk 0:00:09.9]}
37... Be6 {[%clk 0:00:17.1]} 38. Nxe4 {[%clk 0:00:09.5]} 38... Bb4 {[%clk
0:00:10.5]} 39. Nd6 {[%clk 0:00:09.8]} 39... Bg4 {[%clk 0:00:07.9]} 40. Nc8
{[%clk 0:00:09]} 40... Bxc8 {[%clk 0:00:07.3]} 41. Bxd5 {[%clk 0:00:08.3]} 41...
Bf5 {[%clk 0:00:07.4]} 42. e4 {[%clk 0:00:08.7]} 42... Bg4 {[%clk 0:00:06.9]}
43. Kc2 {[%clk 0:00:08.5]} 43... Kf6 {[%clk 0:00:06.7]} 44. Kd3 {[%clk
0:00:09.1]} 44... Bh3 {[%clk 0:00:05.5]} 45. Kc4 {[%clk 0:00:09.5]} 45... Bf1+
{[%clk 0:00:05.3]} 46. Kb3 {[%clk 0:00:10]} 46... Bd2 {[%clk 0:00:05.1]} 47. f5
{[%clk 0:00:09.1]} 47... Ke5 {[%clk 0:00:04]} 48. Kc2 {[%clk 0:00:09.9]} 48...
Bb4 {[%clk 0:00:03.7]} 49. Kb3 {[%clk 0:00:10.5]} 49... Be2 {[%clk 0:00:04]} 50.
Kc2 {[%clk 0:00:11]} 50... Bf3 {[%clk 0:00:04]} 51. Kd3 {[%clk 0:00:11.2]} 51...
Bg2 {[%clk 0:00:03.6]} 52. Bc6 {[%clk 0:00:11.5]} 52... Bf1+ {[%clk 0:00:03.6]}
53. Ke3 {[%clk 0:00:11]} 53... Bc3 {[%clk 0:00:04.2]} 54. Bd5 {[%clk 0:00:11.3]}
54... Bd4+ {[%clk 0:00:04.7]} 55. Kf3 {[%clk 0:00:10.3]} 55... Bd3 {[%clk
0:00:05.4]} 56. Bc6 {[%clk 0:00:10.2]} 56... Bc2 {[%clk 0:00:05.7]} 57. Bb5
{[%clk 0:00:07.8]} 57... Bb3 {[%clk 0:00:05.2]} 58. Bc6 {[%clk 0:00:08.4]} 58...
Bc2 {[%clk 0:00:05.7]} 59. Bd5 {[%clk 0:00:07.2]} 59... Bxa4 {[%clk 0:00:04.7]}
60. Kg4 {[%clk 0:00:07.2]} 60... Bc2 {[%clk 0:00:04.7]} 61. Kg5 {[%clk
0:00:07.7]} 61... Bxe4 {[%clk 0:00:04.7]} 62. f6 {[%clk 0:00:06.8]} 62... Bxd5
{[%clk 0:00:04.8]} 0-1

[Event "Early-Titled-Tuesday-Blitz-October-10-2023"]
[Site "Chess.com"]
[Date "2023.10.10"]
[Round "7"]
[White "LaPiToB"]
[Black "noblerone"]
[Result "1-0"]
[WhiteElo "2306"]
[BlackElo "2449"]
[TimeControl "180+1"]
[EndTime "9:17:01 PDT"]
[Termination "LaPiToB won on time"]

1. d4 {[%clk 0:03:00.9]} 1... d5 {[%clk 0:03:00]} 2. c4 {[%clk 0:03:00.7]} 2...
c6 {[%clk 0:03:00.4]} 3. Nc3 {[%clk 0:02:59.6]} 3... Nf6 {[%clk 0:02:59.5]} 4.
cxd5 {[%clk 0:02:59.3]} 4... cxd5 {[%clk 0:02:59.1]} 5. Bf4 {[%clk 0:02:59.3]}
5... Nc6 {[%clk 0:02:59.1]} 6. e3 {[%clk 0:02:59.3]} 6... a6 {[%clk 0:02:59.3]}
7. Be2 {[%clk 0:02:58.9]} 7... Bf5 {[%clk 0:02:57.2]} 8. g4 {[%clk 0:02:58.7]}
8... Bg6 {[%clk 0:02:53.7]} 9. h4 {[%clk 0:02:58.1]} 9... h5 {[%clk 0:02:53.4]}
10. g5 {[%clk 0:02:56.9]} 10... Ne4 {[%clk 0:02:54]} 11. Nxe4 {[%clk 0:02:36]}
11... Bxe4 {[%clk 0:02:51.1]} 12. Bf3 {[%clk 0:02:32.8]} 12... Bxf3 {[%clk
0:02:47.3]} 13. Nxf3 {[%clk 0:02:33.3]} 13... g6 {[%clk 0:02:44.3]} 14. Qb3
{[%clk 0:02:31.4]} 14... Na5 {[%clk 0:02:37.1]} 15. Qd3 {[%clk 0:02:02.3]} 15...
Bg7 {[%clk 0:02:20.9]} 16. Rc1 {[%clk 0:01:59.8]} 16... Rc8 {[%clk 0:02:01.4]}
17. O-O {[%clk 0:01:58.6]} 17... O-O {[%clk 0:02:00.1]} 18. Kg2 {[%clk
0:01:38.2]} 18... Qd7 {[%clk 0:01:48.9]} 19. Ne5 {[%clk 0:01:33.6]} 19... Bxe5
{[%clk 0:01:47.6]} 20. Bxe5 {[%clk 0:01:32.3]} 20... Nc4 {[%clk 0:01:46.1]} 21.
Bg3 {[%clk 0:00:59.1]} 21... Nxb2 {[%clk 0:01:44.6]} 22. Qb3 {[%clk 0:00:52.3]}
22... Nc4 {[%clk 0:01:33]} 23. Rfd1 {[%clk 0:00:48.1]} 23... b5 {[%clk
0:01:32.2]} 24. a4 {[%clk 0:00:43.8]} 24... bxa4 {[%clk 0:01:29.3]} 25. Qb4
{[%clk 0:00:42.2]} 25... a3 {[%clk 0:01:25.1]} 26. Ra1 {[%clk 0:00:39.3]} 26...
Rfe8 {[%clk 0:01:24.3]} 27. Rd3 {[%clk 0:00:30.1]} 27... Qb5 {[%clk 0:01:19]}
28. Qe1 {[%clk 0:00:23.6]} 28... Qc6 {[%clk 0:01:00.5]} 29. Rc3 {[%clk 0:00:23]}
29... a5 {[%clk 0:00:55.8]} 30. Raxa3 {[%clk 0:00:21.8]} 30... Qe6 {[%clk
0:00:37.9]} 31. Ra1 {[%clk 0:00:19.3]} 31... Ra8 {[%clk 0:00:35.1]} 32. Qe2
{[%clk 0:00:13.6]} 32... Qe4+ {[%clk 0:00:33.9]} 33. Qf3 {[%clk 0:00:11]} 33...
Qxf3+ {[%clk 0:00:33.1]} 34. Kxf3 {[%clk 0:00:11.6]} 34... e6 {[%clk 0:00:33.9]}
35. Rb3 {[%clk 0:00:10]} 35... a4 {[%clk 0:00:31.7]} 36. Rb7 {[%clk 0:00:10.1]}
36... a3 {[%clk 0:00:31.2]} 37. Ra2 {[%clk 0:00:08.4]} 37... Ra6 {[%clk
0:00:30.8]} 38. Bf4 {[%clk 0:00:07]} 38... Rea8 {[%clk 0:00:31]} 39. Bc7 {[%clk
0:00:06.1]} 39... Rc8 {[%clk 0:00:28.9]} 40. Kf4 {[%clk 0:00:05]} 40... Rc6
{[%clk 0:00:27.7]} 41. Be5 {[%clk 0:00:05.2]} 41... Ra6 {[%clk 0:00:22.7]} 42.
Bf6 {[%clk 0:00:03.8]} 42... Rca8 {[%clk 0:00:22]} 43. Rb3 {[%clk 0:00:03.6]}
43... Rb6 {[%clk 0:00:21.2]} 44. Rxb6 {[%clk 0:00:03.2]} 44... Nxb6 {[%clk
0:00:22.1]} 45. Be7 {[%clk 0:00:03.2]} 45... Nc4 {[%clk 0:00:22.8]} 46. Bc5
{[%clk 0:00:03.4]} 46... Kg7 {[%clk 0:00:21.9]} 47. f3 {[%clk 0:00:04]} 47... f6
{[%clk 0:00:21.6]} 48. gxf6+ {[%clk 0:00:03.6]} 48... Kxf6 {[%clk 0:00:22.5]}
49. e4 {[%clk 0:00:04.2]} 49... Kf7 {[%clk 0:00:20.5]} 50. e5 {[%clk 0:00:04.4]}
50... Rb8 {[%clk 0:00:16.9]} 51. Kg5 {[%clk 0:00:03.8]} 51... Rb2 {[%clk
0:00:16.1]} 52. Ra1 {[%clk 0:00:04.2]} 52... Rg2+ {[%clk 0:00:14.9]} 53. Kh6
{[%clk 0:00:03.9]} 53... a2 {[%clk 0:00:13.3]} 54. Bb4 {[%clk 0:00:03.6]} 54...
Rb2 {[%clk 0:00:12.8]} 55. Bc3 {[%clk 0:00:03.6]} 55... Rc2 {[%clk 0:00:12.9]}
56. Bb4 {[%clk 0:00:02.9]} 56... Rf2 {[%clk 0:00:13.4]} 57. Bc3 {[%clk
0:00:03.1]} 57... Rxf3 {[%clk 0:00:13.6]} 58. Be1 {[%clk 0:00:03.2]} 58... Re3
{[%clk 0:00:12.9]} 59. Bb4 {[%clk 0:00:03.2]} 59... Re2 {[%clk 0:00:13.2]} 60.
Bc5 {[%clk 0:00:03.5]} 60... Rd2 {[%clk 0:00:10.4]} 61. Rf1+ {[%clk 0:00:03.3]}
61... Ke8 {[%clk 0:00:10]} 62. Rf8+ {[%clk 0:00:03.1]} 62... Kd7 {[%clk
0:00:10.4]} 63. Ra8 {[%clk 0:00:03.9]} 63... Kc6 {[%clk 0:00:09.9]} 64. Kxg6
{[%clk 0:00:04.3]} 64... Rf2 {[%clk 0:00:09]} 65. Kxh5 {[%clk 0:00:04.7]} 65...
Kb7 {[%clk 0:00:06.6]} 66. Ra7+ {[%clk 0:00:04.2]} 66... Kb8 {[%clk 0:00:06.9]}
67. Kg6 {[%clk 0:00:04.5]} 67... Rg2+ {[%clk 0:00:07.4]} 68. Kf7 {[%clk
0:00:04.6]} 68... Rh2 {[%clk 0:00:07]} 69. Kxe6 {[%clk 0:00:05]} 69... Rxh4
{[%clk 0:00:04.7]} 70. Kxd5 {[%clk 0:00:05.4]} 70... Ne3+ {[%clk 0:00:05.2]} 71.
Kc6 {[%clk 0:00:05.5]} 71... Rh6+ {[%clk 0:00:03.7]} 72. Kb5 {[%clk 0:00:05.5]}
72... Nc2 {[%clk 0:00:02.5]} 73. Rxa2 {[%clk 0:00:04.2]} 1-0